bitfinex/quotes_SOLUSD_20220306
["timestamp","ask_amount","ask_price","bid_price","bid_amount"]
[1646555725947,1.53198701,87.963,87.901,57.18254153]
[1646555726145,1.53198701,87.97,87.901,57.18254153]
[1646555726446,1.53198701,87.981,87.901,57.18254153]
[1646555726645,1.53198701,87.982,87.901,57.18254153]
[1646555726844,1.53198701,87.981,87.902,24.4833]
[1646555727044,1.53198701,87.981,87.91,17.0622]
[1646555727245,1.53198701,87.981,87.92,16.37]
[1646555727444,1.53198701,87.982,87.92,23.48]
[1646555727845,1.53198701,87.981,87.92,23.48]
[1646555728247,1.53198701,87.982,87.92,23.48]
[1646555728450,1.53198701,87.981,87.92,23.48]
[1646555728645,1.53198701,87.981,87.92,40.5403]
[1646555728846,1.53198701,87.982,87.92,40.5403]
[1646555729247,1.53198701,87.983,87.92,40.5403]
[1646555730247,1.53198701,87.982,87.92,40.5403]
[1646555730447,1.53198701,87.983,87.92,40.5403]
[1646555730850,1.53198701,87.984,87.92,40.5403]
[1646555732154,1.53198701,87.986,87.92,40.5403]
[1646555732351,1.53198701,87.985,87.92,40.5403]
[1646555734054,1.53198701,87.984,87.92,40.5403]
[1646555734755,1.53198701,87.983,87.92,40.5403]
[1646555737460,1.53198701,87.983,87.92,16.37]
[1646555737656,1.53198701,87.98,87.902,24.4833]
[1646555737856,21.65893726,87.959,87.902,24.4833]
[1646555738056,1.53198701,87.957,87.902,24.4833]
[1646555738256,1.53198701,87.955,87.902,24.4833]
[1646555739456,1.53198701,87.955,87.901,49.92254153]
[1646555739659,1.53198701,87.952,87.901,49.92254153]
[1646555739860,1.53198701,87.952,87.883,23.6042]
[1646555740260,1.53198701,87.943,87.87,16.37]
[1646555740460,24.987,87.957,87.85,16.37]
[1646555740461,1.53198701,87.939,87.85,16.37]
[1646555740660,1.53198701,87.925,87.85,17.0741]
[1646555740861,49.67001991,87.924,87.851,52.92370163]
[1646555741363,1.53198701,87.924,87.851,52.92370163]
[1646555741760,1.53198701,87.924,87.86,17.0716]
[1646555741961,1.53198701,87.926,87.86,33.4416]
[1646555742160,1.53198701,87.933,87.86,33.4416]
[1646555742362,1.53198701,87.934,87.861,2.83613526]
[1646555742562,1.53198701,87.943,87.861,2.83613526]
[1646555742761,1.53198701,87.943,87.88,17.0656]
[1646555742963,1.53198701,87.944,87.88,17.0656]
[1646555743162,1.53198701,87.943,87.88,17.0656]
[1646555743567,1.53198701,87.942,87.881,46.98631252]
[1646555743767,1.53198701,87.943,87.881,46.98631252]
[1646555743969,1.53198701,87.944,87.881,46.98631252]
[1646555745168,1.53198701,87.944,87.89,17.0657]
[1646555745570,1.53198701,87.945,87.89,17.0657]
[1646555746670,1.53198701,87.946,87.89,17.0657]
[1646555746870,1.53198701,87.945,87.89,17.0657]
[1646555747070,1.53198701,87.945,87.881,46.98631252]
[1646555747271,23.9459,87.954,87.881,46.98631252]
[1646555747272,1.53198701,87.938,87.881,46.98631252]
[1646555747471,23.9459,87.954,87.881,46.98631252]
[1646555747472,1.53198701,87.935,87.881,46.98631252]
[1646555748478,1.53198701,87.927,87.881,46.98631252]
[1646555748875,1.53198701,87.926,87.881,46.98631252]
[1646555749274,1.53198701,87.925,87.881,46.98631252]
[1646555750077,1.53198701,87.926,87.881,46.98631252]
[1646555750478,1.53198701,87.928,87.881,46.98631252]
[1646555751595,1.53198701,87.927,87.881,46.98631252]
[1646555751792,1.53198701,87.928,87.881,46.98631252]
[1646555752393,1.53198701,87.927,87.881,46.98631252]
[1646555752593,1.53198701,87.928,87.881,46.98631252]
[1646555752794,1.53198701,87.929,87.881,46.98631252]
[1646555755493,1.53198701,87.93,87.881,46.98631252]
[1646555755693,1.53198701,87.931,87.881,46.98631252]
[1646555755895,1.53198701,87.932,87.881,46.98631252]
[1646555756095,1.53198701,87.933,87.881,46.98631252]
[1646555756293,1.53198701,87.932,87.881,46.98631252]
[1646555757397,1.53198701,87.931,87.881,46.98631252]
[1646555757796,1.53198701,87.93,87.881,46.98631252]
[1646555757995,1.53198701,87.929,87.881,46.98631252]
[1646555758596,1.53198701,87.928,87.85,16.37]
[1646555758795,114.83198701,87.928,87.82,16.37]
[1646555758996,1.53198701,87.911,87.806,47.3475]
[1646555759197,1.53198701,87.909,87.806,47.3475]
[1646555759398,1.53198701,87.901,87.806,47.3475]
[1646555759596,1.53198701,87.896,87.807,52.38446757]
[1646555759797,113.3,87.894,87.807,52.38446757]
[1646555760294,49.03068701,87.895,87.81,33.4512]
[1646555760494,47.4987,87.895,87.81,33.4512]
[1646555762101,47.4987,87.895,87.811,2.83613526]
[1646555762295,47.4987,87.895,87.83,17.0771]
[1646555762896,47.4987,87.895,87.83,23.9771]
[1646555763103,1.53198701,87.912,87.83,23.9771]
[1646555763298,1.53198701,87.917,87.83,43.18323526]
[1646555763699,1.53198701,87.92,87.83,43.18323526]
[1646555763898,1.53198701,87.921,87.83,43.18323526]
[1646555764100,1.53198701,87.921,87.83,91.28513969]
[1646555764299,1.53198701,87.922,87.83,91.28513969]
[1646555764498,49.326,87.925,87.85,17.0711]
[1646555764702,49.326,87.925,87.85,33.4411]
[1646555764998,50.85798701,87.925,87.85,33.4411]
[1646555765200,50.85798701,87.925,87.851,63.45152322]
[1646555766199,49.326,87.925,87.86,17.0711]
[1646555766801,50.85798701,87.925,87.86,17.0711]
[1646555767000,1.53198701,87.922,87.852,24.4409]
[1646555767199,1.53198701,87.917,87.852,24.4409]
[1646555767402,1.53198701,87.916,87.852,24.4409]
[1646555767601,1.53198701,87.917,87.852,24.4409]
[1646555767800,1.53198701,87.916,87.852,24.4409]
[1646555768900,49.326,87.925,87.851,63.45152322]
[1646555768901,1.53198701,87.907,87.851,63.45152322]
[1646555769102,1.53198701,87.9,87.851,63.45152322]
[1646555769501,39.71107759,87.899,87.851,63.45152322]
[1646555769701,41.2430646,87.899,87.851,63.45152322]
[1646555769904,39.71107759,87.899,87.851,63.45152322]
[1646555770107,39.71107759,87.899,87.821,22.9836]
[1646555770304,24.56638701,87.898,87.821,22.9836]
[1646555770506,113.3,87.897,87.821,22.9836]
[1646555771004,23.0344,87.898,87.822,60.96936056]
[1646555771406,113.3,87.897,87.822,60.96936056]
[1646555771606,1.53198701,87.896,87.822,60.96936056]
[1646555771804,113.3,87.897,87.822,60.96936056]
[1646555771805,114.83198701,87.897,87.822,60.96936056]
[1646555772004,1.53198701,87.896,87.822,60.96936056]
[1646555772904,113.3,87.897,87.822,60.96936056]
[1646555773606,114.83198701,87.897,87.822,60.96936056]
[1646555775219,1.53198701,87.896,87.822,60.96936056]
[1646555775409,114.83198701,87.897,87.822,60.96936056]
[1646555775608,1.53198701,87.892,87.822,60.96936056]
[1646555775810,1.53198701,87.893,87.822,60.96936056]
[1646555776309,1.53198701,87.892,87.822,60.96936056]
[1646555776509,1.53198701,87.893,87.822,60.96936056]
[1646555776708,1.53198701,87.891,87.822,60.96936056]
[1646555777009,1.53198701,87.89,87.822,60.96936056]
[1646555777615,1.53198701,87.89,87.81,17.0815]
[1646555778312,1.53198701,87.889,87.81,17.0815]
[1646555778612,1.53198701,87.889,87.811,59.45848238]
[1646555778813,114.83198701,87.887,87.811,59.45848238]
[1646555779011,113.3,87.885,87.811,59.45848238]
[1646555779211,113.3,87.883,87.811,59.45848238]
[1646555779615,67.86,87.882,87.79,16.37]
[1646555779813,69.39198701,87.876,87.775,25.27090203]
[1646555780014,113.3,87.867,87.775,25.27090203]
[1646555780216,113.3,87.865,87.769,23.8212]
[1646555780413,1.53198701,87.862,87.769,23.8212]
[1646555780613,1.53198701,87.862,87.77,64.45249446]
[1646555780614,1.53198701,87.859,87.77,64.45249446]
[1646555780813,113.3,87.857,87.77,64.45249446]
[1646555781023,113.3,87.855,87.77,81.54189446]
[1646555781923,113.3,87.853,87.77,81.54189446]
[1646555783523,113.3,87.849,87.77,64.45249446]
[1646555783724,113.3,87.847,87.77,64.45249446]
[1646555784227,5.692,87.846,87.77,64.45249446]
[1646555784423,113.3,87.845,87.77,64.45249446]
[1646555785445,113.3,87.852,87.77,64.45249446]
[1646555785643,24.111,87.854,87.78,8.94]
[1646555787046,24.111,87.854,87.78,25.31]
[1646555787245,1.53198701,87.882,87.8,17.0835]
[1646555787445,9.70297057,87.931,87.8,17.0835]
[1646555787446,1.53198701,87.891,87.8,42.7635]
[1646555787645,1.53198701,87.891,87.801,23.4681]
[1646555787849,1.53198701,87.891,87.802,113.3]
[1646555788046,1.53198701,87.897,87.804,113.3]
[1646555788245,1.53198701,87.898,87.807,67.86]
[1646555788445,1.53198701,87.907,87.82,16.37]
[1646555788647,1.53198701,87.907,87.83,16.37]
[1646555788846,1.53198701,87.914,87.83,16.37]
[1646555789047,1.53198701,87.92,87.83,33.08669349]
[1646555789246,1.53198701,87.916,87.831,60.95049629]
[1646555789646,1.53198701,87.917,87.832,19.54927542]
[1646555789848,1.53198701,87.917,87.85,17.0731]
[1646555790047,1.53198701,87.925,87.85,25.3831]
[1646555790247,1.53198701,87.926,87.85,25.3831]
[1646555790452,1.53198701,87.928,87.85,25.3831]
[1646555790648,1.53198701,87.931,87.851,2.83613526]
[1646555790850,1.53198701,87.93,87.851,2.83613526]
[1646555791249,1.53198701,87.929,87.851,2.83613526]
[1646555791455,1.53198701,87.93,87.851,2.83613526]
[1646555791650,1.53198701,87.931,87.851,2.83613526]
[1646555791951,1.53198701,87.933,87.86,17.0716]
[1646555792149,1.53198701,87.932,87.86,17.0716]
[1646555792751,57.15837409,87.932,87.861,59.4327555]
[1646555792952,55.62638708,87.932,87.861,59.4327555]
[1646555793752,23.66536682,87.934,87.861,59.4327555]
[1646555794854,45.87536783,87.933,87.861,59.4327555]
[1646555795254,23.66536682,87.934,87.861,59.4327555]
[1646555795455,23.66536682,87.934,87.87,17.0694]
[1646555795655,1.53198701,87.941,87.87,23.0694]
[1646555795854,1.53198701,87.941,87.87,39.4394]
[1646555796054,1.53198701,87.95,87.871,2.83613526]
[1646555796656,1.53198701,87.948,87.871,2.83613526]
[1646555796855,1.53198701,87.951,87.871,2.83613526]
[1646555797659,1.53198701,87.951,87.87,16.37]
[1646555797857,1.53198701,87.95,87.87,16.37]
[1646555798060,1.53198701,87.948,87.87,16.37]
[1646555798559,1.53198701,87.949,87.88,17.0674]
[1646555798759,1.53198701,87.949,87.88,33.4374]
[1646555798958,1.53198701,87.95,87.88,33.4374]
[1646555799863,26.44638701,87.954,87.88,33.4374]
[1646555801961,24.9144,87.954,87.88,33.4374]
[1646555803162,24.9144,87.954,87.88,40.1474]
[1646555803864,1.53198701,87.964,87.88,40.1474]
[1646555804066,1.53198701,87.973,87.881,2.83613526]
[1646555804261,1.53198701,87.973,87.9,17.0592]
[1646555804464,22.8139,87.978,87.9,39.3892]
[1646555804663,22.8139,87.978,87.901,2.83613526]
[1646555804865,22.8139,87.978,87.902,50.09718615]
[1646555805267,1.53198701,87.982,87.902,52.93332141]
[1646555805467,1.53198701,87.982,87.92,17.0605]
[1646555805665,1.53198701,87.993,87.92,39.4805]
[1646555805868,1.53198701,87.996,87.92,39.4805]
[1646555806068,22.8139,87.998,87.92,39.4805]
[1646555806867,1.53198701,87.997,87.92,39.4805]
[1646555807272,24.34588701,87.998,87.92,39.4805]
[1646555807665,22.8139,87.998,87.92,39.4805]
[1646555808870,1.53198701,88.004,87.92,39.4805]
[1646555809066,24.4143,88.006,87.92,39.4805]
[1646555809868,48.94089128,88.005,87.92,39.4805]
[1646555810068,48.94089128,88.005,87.92,33.4305]
[1646555811070,113.3,88.003,87.92,16.37]
[1646555811269,113.3,88.001,87.912,23.7114]
[1646555811470,1.53198701,87.997,87.912,23.7114]
[1646555811668,1.53198701,87.99,87.912,23.7114]
[1646555811867,1.53198701,87.989,87.912,23.7114]
[1646555812277,1.53198701,87.991,87.912,23.7114]
[1646555812670,1.53198701,87.992,87.912,23.7114]
[1646555813072,1.53198701,87.989,87.92,17.0597]
[1646555813272,25.44638701,87.991,87.92,33.4297]
[1646555813473,23.9144,87.991,87.92,33.4297]
[1646555814679,1.53198701,87.984,87.92,33.4297]
[1646555814879,1.53198701,87.988,87.92,33.4297]
[1646555815079,25.44638701,87.991,87.92,33.4297]
[1646555815282,1.53198701,87.991,87.92,33.4297]
[1646555815479,1.53198701,87.998,87.92,33.4297]
[1646555815879,1.53198701,87.999,87.92,33.4297]
[1646555816282,1.53198701,87.998,87.92,33.4297]
[1646555816480,1.53198701,87.996,87.92,33.4297]
[1646555816680,1.53198701,87.995,87.92,33.4297]
[1646555817080,1.53198701,87.998,87.92,33.4297]
[1646555817681,1.53198701,87.986,87.92,33.4297]
[1646555817982,1.53198701,87.978,87.92,33.4297]
[1646555818499,1.53198701,87.977,87.92,33.4297]
[1646555818801,1.53198701,87.976,87.92,33.4297]
[1646555819399,1.53198701,87.972,87.92,33.4297]
[1646555819601,1.53198701,87.971,87.92,33.4297]
[1646555819798,1.53198701,87.972,87.92,33.4297]
[1646555820000,1.53198701,87.971,87.92,33.4297]
[1646555820698,1.53198701,87.968,87.92,33.4297]
[1646555820899,1.53198701,87.969,87.92,33.4297]
[1646555822001,1.53198701,87.973,87.92,33.4297]
[1646555822201,24.3724,87.986,87.92,33.4297]
[1646555822202,1.53198701,87.976,87.92,41.3997]
[1646555823008,1.53198701,87.976,87.93,17.0553]
[1646555823202,1.53198701,87.977,87.93,33.4253]
[1646555823402,1.53198701,87.978,87.93,33.4253]
[1646555823602,1.53198701,87.977,87.93,33.4253]
[1646555823805,1.53198701,87.975,87.93,33.4253]
[1646555824001,1.53198701,87.975,87.931,51.20506454]
[1646555824203,1.53198701,87.972,87.931,51.20506454]
[1646555825103,1.53198701,87.971,87.931,51.20506454]
[1646555825403,24.3724,87.986,87.931,51.20506454]
[1646555825404,1.53198701,87.967,87.931,51.20506454]
[1646555825603,1.53198701,87.966,87.931,51.20506454]
[1646555825804,1.53198701,87.965,87.931,51.20506454]
[1646555826805,1.53198701,87.963,87.931,51.16625566]
[1646555827005,1.53198701,87.964,87.931,51.16625566]
[1646555828010,1.53198701,87.963,87.931,51.16625566]
[1646555828508,1.53198701,87.964,87.931,51.16625566]
[1646555828709,1.53198701,87.965,87.931,51.16625566]
[1646555828912,1.53198701,87.966,87.931,51.16625566]
[1646555829308,6.21925177,87.985,87.931,51.16625566]
[1646555829309,2.75123878,87.985,87.931,51.16625566]
[1646555829710,47.7887866,87.984,87.931,51.16625566]
[1646555831618,113.3,87.983,87.931,51.16625566]
[1646555831818,113.3,87.983,87.912,23.7114]
[1646555832016,3.06211498,87.976,87.89,33.4351]
[1646555832315,136.96536682,87.983,87.89,17.0651]
[1646555832316,3.06211498,87.971,87.89,17.0651]
[1646555832516,3.06211498,87.97,87.89,17.0651]
[1646555832716,3.06211498,87.963,87.89,17.0651]
[1646555832920,3.06211498,87.961,87.891,59.56795268]
[1646555833120,24.871,87.96,87.891,59.56795268]
[1646555842025,24.871,87.96,87.89,17.0651]
[1646555842225,183.11434044,87.959,87.891,5.686]
[1646555842427,186.17645542,87.959,87.865,5.686]
[1646555842627,3.06211498,87.956,87.865,5.686]
[1646555843028,116.36211498,87.954,87.865,5.686]
[1646555843229,3.06211498,87.946,87.865,5.686]
[1646555843428,3.06211498,87.941,87.848,5.687]
[1646555843630,3.06211498,87.941,87.83,17.0773]
[1646555843631,181.16,87.939,87.831,5.688]
[1646555843829,113.3,87.937,87.831,5.688]
[1646555844031,113.3,87.935,87.831,5.688]
[1646555844229,113.3,87.931,87.832,59.9949909]
[1646555844432,181.16,87.929,87.833,5.689]
[1646555844652,181.16,87.927,87.833,5.689]
[1646555844833,181.16,87.925,87.833,5.689]
[1646555845029,24.10085063,87.931,87.833,5.689]
[1646555845030,113.3,87.921,87.833,5.689]
[1646555845230,113.3,87.919,87.833,5.689]
[1646555846433,118.989,87.919,87.833,5.689]
[1646555847133,5.689,87.919,87.833,5.689]
[1646555847334,22.9073,87.924,87.84,17.0754]
[1646555847534,22.9073,87.924,87.841,5.689]
[1646555847834,22.9073,87.924,87.841,8.52513526]
[1646555848033,22.9073,87.924,87.842,2.83613526]
[1646555848240,22.9073,87.924,87.843,5.689]
[1646555848640,22.9073,87.924,87.844,2.83613526]
[1646555848839,1.95419151,87.952,87.86,17.0691]
[1646555849040,23.4244,87.944,87.87,16.37]
[1646555849239,23.4244,87.944,87.871,5.687]
[1646555849640,23.4244,87.944,87.871,8.52313526]
[1646555849840,23.66536682,87.97,87.88,17.0652]
[1646555850042,3.06211498,87.981,87.89,16.37]
[1646555850241,5.684,87.98,87.891,5.684]
[1646555850441,113.3,87.978,87.891,5.684]
[1646555850641,113.3,87.978,87.891,8.52013526]
[1646555850842,61.10160347,87.977,87.892,56.25072761]
[1646555851041,61.10160347,87.977,87.893,5.686]
[1646555852161,61.10160347,87.977,87.9,17.0631]
[1646555852363,23.4244,87.979,87.901,5.684]
[1646555852760,23.4244,87.979,87.901,8.52013526]
[1646555852959,23.4244,87.979,87.902,2.83613526]
[1646555853160,23.4244,87.979,87.903,5.684]
[1646555853360,86.45865253,87.979,87.903,5.684]
[1646555853662,113.3,87.978,87.903,5.684]
[1646555853860,86.45865253,87.979,87.903,5.684]
[1646555854674,23.4244,87.979,87.911,59.01665427]
[1646555854863,23.4244,87.979,87.911,67.49665427]
[1646555855762,59.18959217,87.978,87.911,67.49665427]
[1646555855962,59.18959217,87.978,87.911,59.01665427]
[1646555857064,23.4244,87.979,87.92,17.0603]
[1646555863468,23.4244,87.979,87.921,5.684]
[1646555864172,113.3,87.978,87.921,5.684]
[1646555864371,113.3,87.976,87.881,24.1729]
[1646555864770,113.3,87.974,87.881,24.1729]
[1646555864971,113.3,87.974,87.882,5.686]
[1646555865172,113.3,87.972,87.882,5.686]
[1646555865371,25.61955833,87.973,87.883,51.65905513]
[1646555865571,1.95419151,87.972,87.884,5.686]
[1646555865869,1.95419151,87.972,87.884,29.4997]
[1646555866369,23.66536682,87.971,87.884,29.4997]
[1646555866572,113.3,87.97,87.884,29.4997]
[1646555867171,113.3,87.97,87.89,17.066]
[1646555867373,113.3,87.97,87.891,5.686]
[1646555868174,23.66536682,87.971,87.891,5.686]
[1646555869978,113.3,87.97,87.891,5.686]
[1646555870277,23.66536682,87.971,87.891,5.686]
[1646555871176,113.3,87.97,87.891,5.686]
[1646555874277,113.3,87.97,87.89,17.066]
[1646555874479,1.95419151,87.969,87.89,17.066]
[1646555874684,115.25419151,87.969,87.89,17.066]
[1646555874985,7.64019151,87.968,87.89,17.066]
[1646555875181,7.64019151,87.968,87.891,5.686]
[1646555875780,22.8931,87.967,87.891,5.686]
[1646555876579,113.3,87.966,87.891,5.686]
[1646555876780,22.8931,87.967,87.891,5.686]
[1646555877984,113.3,87.966,87.891,5.686]
[1646555878183,22.8931,87.967,87.891,5.686]
[1646555879589,22.8931,87.967,87.9,17.0638]
[1646555879793,22.8931,87.967,87.901,62.04136217]
[1646555880408,22.8931,87.967,87.901,56.35536217]
[1646555881196,3.06211498,87.984,87.901,56.35536217]
[1646555881396,24.1883,87.988,87.902,24.0254]
[1646555881796,24.1883,87.988,87.903,5.684]
[1646555882200,24.1883,87.988,87.91,17.0623]
[1646555882404,24.1883,87.988,87.92,16.37]
[1646555882601,24.1883,87.988,87.921,55.96352383]
[1646555888124,24.1883,87.988,87.921,5.684]
[1646555888125,113.3,87.987,87.921,5.684]
[1646555888325,138.91955833,87.987,87.903,5.684]
[1646555888523,3.06211498,87.982,87.902,24.0254]
[1646555888723,3.06211498,87.983,87.902,24.0254]
[1646555888924,113.3,87.98,87.902,24.0254]
[1646555889124,113.3,87.98,87.903,46.43218814]
[1646555889327,25.61955833,87.979,87.903,46.43218814]
[1646555889627,135.0274818,87.978,87.903,46.43218814]
[1646555889825,136.98167331,87.978,87.903,46.43218814]
[1646555890025,35.60101854,87.975,87.903,46.43218814]
[1646555890226,108.3,87.974,87.903,46.43218814]
[1646555890427,108.3,87.972,87.903,46.43218814]
[1646555891827,131.96536682,87.972,87.903,46.43218814]
[1646555892730,26.77539151,87.973,87.903,46.43218814]
[1646555893532,24.8212,87.973,87.903,46.43218814]
[1646555893730,24.8212,87.973,87.903,53.93218814]
[1646555894429,24.8212,87.973,87.91,17.0621]
[1646555894630,24.8212,87.973,87.92,16.37]
[1646555894829,24.8212,87.973,87.921,46.63297124]
[1646555895030,24.8212,87.973,87.921,53.78297124]
[1646555899636,24.8212,87.973,87.93,17.0585]
[1646555899837,112.1,87.997,87.93,33.4285]
[1646555900037,23.7353,87.996,87.93,33.4285]
[1646555902141,23.94835172,87.993,87.93,33.4285]
[1646555902346,23.7353,87.996,87.93,33.4285]
[1646555903350,5.684,88.015,87.93,33.4285]
[1646555903551,23.9745,88.014,87.93,33.4285]
[1646555904446,113.3,88.007,87.93,33.4285]
[1646555904669,113.3,88.007,87.93,32.9285]
[1646555905148,136.96536682,88.007,87.93,32.9285]
[1646555905546,136.96536682,88.007,87.93,16.37]
[1646555905749,1.96107752,88.006,87.921,46.63297124]
[1646555905949,5.0231925,88.006,87.921,46.63297124]
[1646555906148,113.3,88.004,87.921,46.63297124]
[1646555906554,32.46606496,88.001,87.921,46.63297124]
[1646555906753,113.3,88.0,87.921,46.63297124]
[1646555906951,136.96536682,88.0,87.921,46.63297124]
[1646555907352,113.3,87.998,87.921,46.63297124]
[1646555907552,23.66536682,87.999,87.921,46.63297124]
[1646555908353,32.46606496,88.001,87.921,46.63297124]
[1646555909253,32.46606496,88.001,87.93,17.0581]
[1646555910255,24.3204,88.003,87.93,17.0581]
[1646555910455,24.3204,88.003,87.93,40.4481]
[1646555913473,24.3204,88.003,87.93,43.28423526]
[1646555913672,23.1243,88.026,87.93,43.28423526]
[1646555913873,23.1243,88.026,87.931,48.42252203]
[1646555913874,24.8149,88.025,87.931,48.42252203]
[1646555914184,24.8149,88.025,87.951,54.47201431]
[1646555914373,24.8149,88.025,87.96,16.37]
[1646555914976,24.8149,88.025,87.96,19.20613526]
[1646555915375,23.1243,88.026,87.96,16.37]
[1646555915575,112.1,88.04,87.97,17.051]
[1646555915775,112.1,88.04,87.97,41.511]
[1646555915977,112.1,88.04,87.971,2.83613526]
[1646555916379,112.1,88.04,87.972,63.37271321]
[1646555917078,112.1,88.04,87.98,17.0479]
[1646555918080,112.1,88.04,87.972,63.37271321]
[1646555919282,112.1,88.04,87.973,5.681]
[1646555919482,112.1,88.04,87.98,17.0484]
[1646555919681,112.1,88.04,87.981,5.681]
[1646555920285,112.1,88.04,87.972,63.37271321]
[1646555920286,135.76536682,88.04,87.972,63.37271321]
[1646555920485,29.17454065,88.038,87.972,63.37271321]
[1646555920682,113.3,88.037,87.972,63.37271321]
[1646555920885,23.66536682,88.037,87.972,63.37271321]
[1646555921287,23.66536682,88.037,87.973,5.681]
[1646555921485,23.66536682,88.037,87.973,12.571]
[1646555922084,61.20514753,88.036,87.973,12.571]
[1646555922488,61.20514753,88.036,87.973,5.681]
[1646555922784,112.1,88.04,87.973,5.681]
[1646555922983,6.21563368,88.039,87.98,17.0486]
[1646555923185,6.21563368,88.039,87.981,5.681]
[1646555923786,112.1,88.04,87.981,5.681]
[1646555926288,6.21558318,88.039,87.981,5.681]
[1646555926495,112.1,88.04,87.981,5.681]
[1646555928395,52.66247229,88.039,87.981,5.681]
[1646555928592,52.66247229,88.039,87.973,5.681]
[1646555928792,23.66536682,88.038,87.973,5.681]
[1646555929193,44.61778247,88.038,87.973,5.681]
[1646555929495,23.66536682,88.037,87.973,5.681]
[1646555930894,28.99710547,88.039,87.973,5.681]
[1646555931095,6.21543135,88.038,87.973,5.681]
[1646555932297,5.71543135,88.038,87.973,5.681]
[1646555932794,0.0393364,88.0,87.973,5.681]
[1646555936409,0.0393364,88.0,87.95,16.37]
[1646555936603,0.0393364,88.0,87.941,24.0931]
[1646555937401,0.0393364,88.0,87.942,63.88128626]
[1646555940706,0.0393364,88.0,87.95,17.0546]
[1646555943511,0.0393364,88.0,87.95,33.4246]
[1646555944113,0.0393364,88.0,87.96,17.0491]
[1646555944315,0.0393364,88.0,87.961,49.33868294]
[1646555944514,0.0393364,88.0,87.961,52.1748182]
[1646555944713,0.0393364,88.0,87.962,2.83613526]
[1646555946238,0.0393364,88.0,87.97,17.0507]
[1646555946436,0.0393364,88.0,87.97,42.4107]
[1646555946637,0.0393364,88.0,87.971,2.83613526]
[1646555948741,0.0393364,88.0,87.97,42.4107]
[1646555949544,0.0393364,88.0,87.97,33.4207]
[1646555949743,0.0393364,88.0,87.97,16.37]
[1646555950053,0.0393364,88.0,87.963,23.4122]
[1646555951245,0.0393364,88.0,87.961,49.33868294]
[1646555951448,1.53693835,87.999,87.95,17.054]
[1646555951644,1.53693835,87.999,87.932,24.2816]
[1646555951844,1.53693835,87.997,87.932,24.2816]
[1646555952044,1.53693835,87.996,87.932,24.2816]
[1646555952445,1.53693835,87.995,87.933,62.87115893]
[1646555953055,1.53693835,87.987,87.933,62.87115893]
[1646555953248,1.53693835,87.983,87.933,62.87115893]
[1646555953446,1.53693835,87.982,87.933,62.87115893]
[1646555953647,1.53693835,87.983,87.933,62.87115893]
[1646555953847,1.53693835,87.982,87.933,62.87115893]
[1646555954447,1.53693835,87.981,87.933,62.87115893]
[1646555954848,1.53693835,87.984,87.933,62.87115893]
[1646555956248,56.64101315,87.986,87.933,62.87115893]
[1646555956249,1.53693835,87.985,87.933,62.87115893]
[1646555956447,1.53693835,87.984,87.933,62.87115893]
[1646555956648,58.1779515,87.986,87.933,62.87115893]
[1646555957448,1.53693835,87.986,87.933,62.87115893]
[1646555957848,1.53693835,87.985,87.933,62.87115893]
[1646555958450,1.53693835,87.986,87.933,62.87115893]
[1646555958851,1.53693835,87.987,87.933,62.87115893]
[1646555959252,1.53693835,87.986,87.933,62.87115893]
[1646555959451,1.53693835,87.987,87.933,62.87115893]
[1646555959651,35.42377203,87.985,87.933,62.87115893]
[1646555960253,1.53693835,87.986,87.933,62.87115893]
[1646555960453,1.53693835,87.987,87.933,62.87115893]
[1646555960758,1.53693835,87.988,87.933,62.87115893]
[1646555961153,1.53693835,87.99,87.933,62.87115893]
[1646555961356,1.53693835,87.986,87.933,62.87115893]
[1646555962654,1.53693835,87.985,87.915,22.9586]
[1646555963053,1.53693835,87.984,87.915,22.9586]
[1646555963255,1.53693835,87.982,87.915,22.9586]
[1646555963453,1.53693835,87.983,87.915,22.9586]
[1646555963655,1.53693835,87.983,87.916,54.4762997]
[1646555966357,1.53693835,87.982,87.916,54.4762997]
[1646555966565,1.53693835,87.981,87.89,16.37]
[1646555966758,1.53693835,87.97,87.888,2.83613526]
[1646555966957,9.80155553,87.982,87.884,24.3803]